[Event "TUR-ch Veterans 2019"]
[Site "Belek"]
[Date "2019.01.21"]
[Round "2.15"]
[White "Muratoglu, Salih"]
[Black "Emec, Sedat"]
[Result "1-0"]
[ECO "A00"]
[WhiteElo "1950"]
[BlackElo "1358"]
[Annotator "NA"]
[PlyCount "123"]
[EventDate "2019.01.20"]
[EventType "swiss"]
[EventCountry "TUR"]
[SourceTitle "playchess.com"]
[Source "ChessBase"]
[SourceQuality "1"]
[TimeControl "5400+30"]

1. b4 {[%emt 0:12:30]} b6 {[%emt 0:26:30]} 2. Nf3 {[%emt 0:00:30] A00: Irregular Openings} e6 {[%emt 0:00:30]} 3. Bb2 {[%emt 0:00:30]} Nf6 {[%emt 0:00:30]} 4. a3 {[%emt 0:00:30]} Bb7 {[%emt 0:00:30]} 5. e3 {[%emt 0:00:30]} d6 {[%emt 0:00:30]} (5... Be7 6. Rg1 O-O 7. g4 c5 8. g5 Ne4 9. h4 cxb4 10. axb4 Bxb4 {0-1 (43) Xiong,J (2652)-Vachier Lagrave,M (2795) chess.com INT 2017}) 6. d4 {[%emt 0:01:30]} Be7 {[%emt 0:00:30]} 7. Bd3 $146 {[%emt 0:00:30]} ({Predecessor:} 7. Nbd2 Nbd7 8. Rc1 Rc8 9. Bd3 a6 10. Qe2 Ra8 11. O-O O-O {½-½ (36) Fuchs Bischoff,K (1597)-Brunner,A (1379) Bad Homburg 2016}) 7... Nbd7 {[%emt 0:00:30]} 8. Nbd2 {[%emt 0:00:30]} a6 {[%emt 0:00:30]} 9. e4 {[%emt 0:00:30]} b5 {[%emt 0:00:30]} 10. O-O {[%emt 0:00:30]} O-O {[%emt 0:00:30]} 11. Qe2 {[%emt 0:00:30]} Nb6 {[%emt 0:00:30]} 12. Rad1 {[%emt 0:00:30]} Na4 {[%emt 0:00:30]} 13. Ba1 {[%emt 0:00:30]} g6 {[%emt 0:00:30]} 14. Nb3 {[%emt 0:00:30]} Rb8 {[%emt 0:00:30]} 15. Ng5 {[%emt 0:00:30]} Nh5 {[%emt 0:00:30]} 16. Nh3 {[%emt 0:00:30]} Ng7 {[%emt 0:00:30]} 17. f4 {[%emt 0:00:30]} f5 {[%emt 0:00:30]} 18. Rfe1 {[%emt 0:00:30]} fxe4 {[%emt 0:00:30]} 19. Bxe4 {[%emt 0:00:30]} Bxe4 {[%emt 0:00:30]} 20. Qxe4 {[%emt 0:01:30]} d5 {[%emt 0:00:30]} 21. Qe3 {[%emt 0:00:30]} Nf5 {[%emt 0:00:30]} 22. Qxe6+ {[%emt 0:00:30]} Kg7 {[%emt 0:00:30]} 23. g4 {[%emt 0:00:30]} Rb6 {[%emt 0:02:30]} (23... Bh4 {might work better.} 24. gxf5 Bxe1 25. Rxe1 Rxf5) 24. Qe2 {[%emt 0:09:30]} Bh4 {[%emt 0:02:30]} 25. gxf5 {[%emt 0:02:30]} Bxe1 {[%emt 0:00:30]} 26. Rxe1 {[%emt 0:00:00]} Rxf5 {[%emt 0:01:30]} 27. Nc5 {[%emt 0:00:00]} Qh4 {[%emt 0:09:30]} 28. Qe7+ {[%emt 0:01:30]} Qxe7 {[%emt 0:01:30]} 29. Rxe7+ {[%emt 0:00:00]} Rf7 {[%emt 0:01:30]} 30. Re5 {[%emt 0:00:00]} Rd6 {[%emt 0:02:30]} 31. Ng5 {[%emt 0:01:30]} Rff6 {[%emt 0:03:30]} 32. Re7+ {[%emt 0:01:30]} Kf8 {[%emt 0:03:30]} 33. Rxc7 {[%emt 0:00:30]} Ke8 {[%emt 0:02:30]} 34. Nh3 {[%emt 0:02:30]} h5 {[%emt 0:03:30]} 35. Kf2 {[%emt 0:01:30]} Kd8 {[%emt 0:02:30]} 36. Rg7 {[%emt 0:00:30]} Kc8 {[%emt 0:01:30]} 37. Ke3 {[%emt 0:00:30]} Nb6 {[%emt 0:01:30]} 38. Kd3 {[%emt 0:03:30]} Nc4 {[%emt 0:02:30]} 39. Bc3 {[%emt 0:00:30]} Nxa3 {[%emt 0:01:30]} 40. Be1 {[%emt 0:00:30]} Nc4 {[%emt 0:01:30]} 41. Bh4 {[%emt 0:00:30]} Rf5 {[%emt 0:03:30]} 42. Ra7 {[%emt 0:01:30]} Kb8 {[%emt 0:02:30]} 43. Rg7 {[%emt 0:02:30]} Nb2+ {[%emt 0:03:42]} 44. Ke2 {[%emt 0:00:30]} Rf8 {[%emt 0:01:46]} 45. Nd7+ {[%emt 0:01:30]} Rxd7 {[%emt 0:00:36]} 46. Rxd7 {[%emt 0:00:30]} Re8+ {[%emt 0:01:25]} 47. Kf3 {[%emt 0:01:30]} Nc4 {[%emt 0:00:39]} 48. Bf2 {[%emt 0:02:30]} Nd2+ {[%emt 0:00:48]} 49. Kg2 {[%emt 0:00:30]} Rc8 {[%emt 0:01:30]} 50. Rxd5 $18 {[%emt 0:00:30]} Rxc2 {[%emt 0:01:52]} 51. Rd6 {[%emt 0:00:30]} Kb7 {[%emt 0:01:05]} 52. d5 {[%emt 0:00:00]} Rb2 {[%emt 0:01:54]} 53. Rb6+ {[%emt 0:01:00]} Kc7 {[%emt 0:01:39]} 54. Rxa6 {[%emt 0:00:30]} Ne4 {[%emt 0:02:24]} 55. Rxg6 {[%emt 0:01:30]} Rxb4 {[%emt 0:00:42]} 56. f5 {[%emt 0:02:30]} Rb3 {[%emt 0:00:49]} 57. f6 {[%emt 0:01:30]} Rxh3 {[%emt 0:01:47]} 58. Bg3+ {[%emt 0:01:30]} Rxg3+ {[%emt 0:01:12]} 59. hxg3 {[%emt 0:00:00]} Kd6 {[%emt 0:02:25]} 60. f7+ {[%emt 0:00:00]} Ke7 {[%emt 0:01:36]} 61. Re6+ {[%emt 0:00:30]} Kxf7 {[%emt 0:00:30]} 62. Rxe4 {[%emt 0:00:00]} 1-0

[Event "TUR-ch Veterans 2019"]
[Site "Belek"]
[Date "2019.01.21"]
[Round "2.16"]
[White "Atas, Remzi"]
[Black "Topaloglu, Hayati"]
[Result "0-1"]
[ECO "A07"]
[WhiteElo "1477"]
[BlackElo "1740"]
[Annotator "NA"]
[PlyCount "66"]
[EventDate "2019.01.20"]
[EventType "swiss"]
[EventCountry "TUR"]
[SourceTitle "playchess.com"]
[Source "ChessBase"]
[SourceQuality "1"]
[TimeControl "5400+30"]

1. Nf3 {[%emt 0:24:30]} Nc6 {[%emt 0:06:30]} 2. g3 {[%emt 0:00:30]} e5 {[%emt 0:00:30]} 3. d3 {[%emt 0:00:30]} d5 {[%emt 0:00:30]} 4. Bg2 {[%emt 0:00:30]} Be6 {[%emt 0:00:30]} 5. O-O {[%emt 0:00:30]} Be7 {[%emt 0:00:30]} 6. Nbd2 {[%emt 0:00:30]} h5 {[%emt 0:00:30]} 7. h4 {[%emt 0:00:30]} f6 {[%emt 0:00:30]} 8. e4 {[%emt 0:00:30]} g5 {[%emt 0:00:30]} 9. exd5 {[%emt 0:00:30]} Bxd5 {[%emt 0:00:30]} 10. Re1 {[%emt 0:00:30]} Qd7 {[%emt 0:00:30]} 11. Ne4 {[%emt 0:03:30]} gxh4 {[%emt 0:02:30]} 12. Nxh4 {[%emt 0:00:30]} O-O-O {[%emt 0:01:30]} 13. Ng6 {[%emt 0:04:30]} Rh7 {[%emt 0:00:30]} 14. Nxe7+ {[%emt 0:01:30]} Ncxe7 {[%emt 0:02:30]} 15. Be3 {[%emt 0:05:30]} h4 {[%emt 0:01:30]} 16. Nc5 {[%emt 0:11:30]} Qf5 {[%emt 0:04:30]} 17. g4 {[%emt 0:00:30]} Qg6 {[%emt 0:01:30]} 18. Bxd5 {[%emt 0:02:30]} Nxd5 {[%emt 0:03:30]} 19. Qf3 {[%emt 0:01:30]} Rg7 {[%emt 0:02:30]} 20. Kh2 {[%emt 0:11:30]} Qxg4 {[%emt 0:02:30]} 21. Qxg4+ {[%emt 0:00:30]} Rxg4 {[%emt 0:00:30]} 22. Rg1 {[%emt 0:03:30]} Nxe3 {[%emt 0:01:30]} 23. fxe3 {[%emt 0:00:30]} f5 {[%emt 0:03:30]} 24. Raf1 {[%emt 0:01:30]} Nh6 {[%emt 0:01:30]} 25. Kh3 {[%emt 0:00:30]} Rdg8 {[%emt 0:00:30]} 26. Rxg4 {[%emt 0:01:30]} Rxg4 {[%emt 0:00:30]} 27. e4 {[%emt 0:02:30]} f4 {[%emt 0:02:30]} 28. Nb3 {[%emt 0:01:44]} Kd8 {[%emt 0:00:30]} 29. Nd2 {[%emt 0:00:20]} Ke7 {[%emt 0:01:30]} 30. Nf3 {[%emt 0:00:26]} Kf6 {[%emt 0:01:30]} 31. Nxh4 {[%emt 0:00:57]} Rg3+ {[%emt 0:00:00]} 32. Kh2 {[%emt 0:00:26]} Ng4+ {[%emt 0:01:00]} 33. Kh1 {[%emt 0:01:10]} Rh3+ {[%emt 0:00:00]} 0-1

[Event "TUR-ch Veterans 2019"]
[Site "Belek"]
[Date "2019.01.21"]
[Round "2.17"]
[White "Bapoglu, Ibrahim"]
[Black "Turkucu, Eyup"]
[Result "1-0"]
[ECO "A01"]
[WhiteElo "1549"]
[BlackElo "1214"]
[Annotator "NA"]
[PlyCount "89"]
[EventDate "2019.01.20"]
[EventType "swiss"]
[EventCountry "TUR"]
[SourceTitle "playchess.com"]
[Source "ChessBase"]
[SourceQuality "1"]
[TimeControl "5400+30"]

1. b3 {[%emt 0:12:30]} Nf6 {[%emt 0:19:30]} 2. Bb2 {[%emt 0:00:30]} d6 {[%emt 0:00:30]} 3. e3 {[%emt 0:00:30]} Nbd7 {[%emt 0:00:30]} 4. d4 {[%emt 0:00:30]} c6 {[%emt 0:00:30]} 5. Bd3 {[%emt 0:00:30]} e5 {[%emt 0:00:30]} 6. Nd2 {[%emt 0:00:30]} Qc7 {[%emt 0:00:30]} 7. Ne2 {[%emt 0:00:30]} a6 {[%emt 0:00:30]} 8. O-O {[%emt 0:00:30]} c5 {[%emt 0:00:30]} 9. Ne4 {[%emt 0:00:30]} Be7 {[%emt 0:00:30]} 10. c4 {[%emt 0:00:30]} b6 {[%emt 0:00:30]} 11. Qc2 {[%emt 0:00:30]} Bb7 {[%emt 0:00:30]} 12. d5 {[%emt 0:00:30]} Ng4 {[%emt 0:00:30]} 13. h3 {[%emt 0:00:30]} Nh6 {[%emt 0:00:30]} 14. N2g3 {[%emt 0:00:30]} f5 {[%emt 0:00:30]} 15. Nc3 {[%emt 0:00:30]} e4 {[%emt 0:00:30]} 16. Be2 {[%emt 0:00:30]} Nf6 {[%emt 0:00:30]} 17. f3 {[%emt 0:00:30]} exf3 {[%emt 0:00:30]} 18. Bxf3 {[%emt 0:00:30]} Bc8 {[%emt 0:00:30]} 19. e4 {[%emt 0:00:30]} f4 {[%emt 0:00:30]} 20. Nf5 {[%emt 0:00:30]} Nxf5 {[%emt 0:00:30]} 21. exf5 {[%emt 0:00:30]} Bd7 {[%emt 0:00:30]} 22. Rae1 {[%emt 0:00:30]} b5 {[%emt 0:01:30]} 23. Ne4 {[%emt 0:00:30]} O-O-O {[%emt 0:01:30]} 24. Ng5 {[%emt 0:01:30]} Nxd5 {[%emt 0:11:30]} 25. Nf7 {[%emt 0:02:30]} Ne3 {[%emt 0:00:30]} 26. Rxe3 {[%emt 0:00:30]} fxe3 {[%emt 0:01:30]} 27. Nxh8 {[%emt 0:00:30]} Rxh8 {[%emt 0:00:30]} 28. Qe4 {[%emt 0:00:30]} Kd8 {[%emt 0:02:30]} 29. Bxg7 {[%emt 0:02:30]} Rg8 {[%emt 0:01:30]} 30. f6 {[%emt 0:01:30]} Bc8 {[%emt 0:09:30]} 31. Qxh7 {[%emt 0:05:30]} Be6 {[%emt 0:01:30]} 32. Qe4 {[%emt 0:01:30]} Qd7 {[%emt 0:03:30]} 33. Qa8+ {[%emt 0:05:30]} Qc8 {[%emt 0:00:00]} 34. fxe7+ {[%emt 0:01:30]} Kxe7 {[%emt 0:02:00]} 35. Qa7+ {[%emt 0:01:30]} Qd7 {[%emt 0:01:30]} 36. Bf6+ {[%emt 0:06:30]} Kf8 {[%emt 0:06:30]} 37. Qb8+ {[%emt 0:00:30]} Kf7 {[%emt 0:01:30]} 38. Bh5+ {[%emt 0:00:30]} Rg6 {[%emt 0:00:30]} 39. Be5+ {[%emt 0:02:30]} Bf5 {[%emt 0:04:30]} 40. Bxg6+ {[%emt 0:00:30]} Kxg6 {[%emt 0:02:30]} 41. Qg8+ {[%emt 0:00:30]} Kh5 {[%emt 0:00:30]} 42. Rxf5+ {[%emt 0:01:30]} Qxf5 {[%emt 0:03:30]} 43. g4+ {[%emt 0:00:30]} Kh4 {[%emt 0:02:30]} 44. gxf5 {[%emt 0:00:30]} Kh5 {[%emt 0:02:14]} 45. Qg4+ {[%emt 0:01:30]} 1-0

[Event "TUR-ch Veterans 2019"]
[Site "Belek"]
[Date "2019.01.21"]
[Round "2.18"]
[White "Yilmaz, Huseyin"]
[Black "Buyukgokcesu, Tahir Sami"]
[Result "0-1"]
[ECO "A55"]
[WhiteElo "1321"]
[BlackElo "1557"]
[Annotator "NA"]
[PlyCount "92"]
[EventDate "2019.01.20"]
[EventType "swiss"]
[EventCountry "TUR"]
[SourceTitle "playchess.com"]
[Source "ChessBase"]
[SourceQuality "1"]
[TimeControl "5400+30"]

1. d4 {[%emt 0:06:30]} Nf6 {[%emt 0:20:30]} 2. c4 {[%emt 0:00:30]} d6 {[%emt 0:00:30]} 3. Nc3 {[%emt 0:00:30]} Nbd7 {[%emt 0:00:30]} 4. e4 {[%emt 0:00:30]} c6 {[%emt 0:00:30]} 5. Nf3 {[%emt 0:00:30]} e5 {[%emt 0:00:30]} 6. d5 {[%emt 0:00:30]} c5 {[%emt 0:00:30]} 7. Bg5 {[%emt 0:00:30]} Be7 {[%emt 0:00:30]} 8. Be2 {[%emt 0:00:30]} Nf8 {[%emt 0:00:30]} 9. O-O {[%emt 0:00:30]} Ng6 {[%emt 0:00:30]} 10. Nd2 {[%emt 0:00:30]} O-O {[%emt 0:00:30]} 11. h4 {[%emt 0:00:30]} Nd7 {[%emt 0:00:30]} 12. Bxe7 {[%emt 0:00:30]} Qxe7 {[%emt 0:00:30]} 13. g3 {[%emt 0:00:30]} h6 {[%emt 0:00:30]} 14. h5 {[%emt 0:00:30]} Nh8 {[%emt 0:00:30]} 15. f4 {[%emt 0:00:30]} a6 {[%emt 0:01:30]} 16. f5 {[%emt 0:00:30]} Rb8 {[%emt 0:04:30]} 17. Nf3 {[%emt 0:00:30]} f6 {[%emt 0:04:30]} 18. Nh4 {[%emt 0:00:30]} Rd8 {[%emt 0:00:30]} 19. a4 {[%emt 0:00:30]} Nf8 {[%emt 0:00:30]} 20. Qd3 {[%emt 0:01:30]} Nf7 {[%emt 0:00:30]} 21. Nf3 {[%emt 0:01:30]} Bd7 {[%emt 0:00:30]} 22. Nd1 {[%emt 0:00:30]} b5 {[%emt 0:02:30]} 23. axb5 {[%emt 0:03:30]} axb5 {[%emt 0:01:30]} 24. b3 {[%emt 0:00:00]} Rb7 {[%emt 0:05:30]} 25. Ne3 {[%emt 0:01:00]} Rdb8 {[%emt 0:03:30]} 26. Rfb1 {[%emt 0:00:30]} Be8 {[%emt 0:03:30]} 27. Ng2 {[%emt 0:02:30]} Ng5 {[%emt 0:03:30]} 28. Nxg5 {[%emt 0:00:30]} fxg5 {[%emt 0:04:30]} 29. Qf3 {[%emt 0:00:30]} Nh7 {[%emt 0:03:30]} 30. Ne3 {[%emt 0:03:30]} Nf6 {[%emt 0:00:30]} 31. g4 {[%emt 0:02:30]} Ra7 {[%emt 0:06:30]} 32. Nc2 {[%emt 0:03:30]} bxc4 {[%emt 0:03:30]} 33. Rxa7 {[%emt 0:00:30]} Qxa7 {[%emt 0:00:30]} 34. Ra1 {[%emt 0:00:30]} Qb6 {[%emt 0:02:30]} 35. Bxc4 {[%emt 0:00:30]} Bb5 {[%emt 0:00:30]} 36. Ne3 {[%emt 0:02:30]} Kf8 {[%emt 0:08:13]} 37. Bxb5 {[%emt 0:04:30]} Qxb5 {[%emt 0:00:12]} 38. Nc4 {[%emt 0:00:00]} Ke7 {[%emt 0:00:27]} 39. Ra7+ {[%emt 0:00:00]} Rb7 {[%emt 0:00:00]} 40. Kg2 {[%emt 0:01:30]} Qa6 {[%emt 0:00:30]} 41. Kg3 {[%emt 0:00:30]} Qa1 {[%emt 0:00:26]} 42. Ne3 {[%emt 0:03:30]} Qb1 {[%emt 0:00:35]} 43. Qe2 {[%emt 0:07:30]} Qxe4 {[%emt 0:00:56]} 44. Kf2 {[%emt 0:00:30]} Qd4 {[%emt 0:02:56]} 45. Qa6 {[%emt 0:00:30]} Qd2+ {[%emt 0:00:38]} 46. Kf3 {[%emt 0:00:30]} e4+ {[%emt 0:00:33]} 0-1

[Event "TUR-ch Veterans 2019"]
[Site "Belek"]
[Date "2019.01.21"]
[Round "2.19"]
[White "Altin, Halis"]
[Black "Savas, Kemal"]
[Result "1-0"]
[ECO "B84"]
[WhiteElo "1642"]
[BlackElo "1316"]
[Annotator "NA"]
[PlyCount "60"]
[EventDate "2019.01.20"]
[EventType "swiss"]
[EventCountry "TUR"]
[SourceTitle "playchess.com"]
[Source "ChessBase"]
[SourceQuality "1"]
[TimeControl "5400+30"]

1. e4 {[%emt 0:19:30]} c5 {[%emt 0:13:30]} 2. Nf3 {[%emt 0:00:30]} d6 {[%emt 0:00:30]} 3. d4 {[%emt 0:00:30]} cxd4 {[%emt 0:00:30]} 4. Nxd4 {[%emt 0:00:30]} Nf6 {[%emt 0:00:30]} 5. Nc3 {[%emt 0:00:30]} a6 {[%emt 0:00:30]} 6. Be2 {[%emt 0:00:30]} Qc7 {[%emt 0:00:30]} 7. Bg5 {[%emt 0:00:30]} Nbd7 {[%emt 0:00:30]} 8. O-O {[%emt 0:00:30]} e6 {[%emt 0:00:30]} 9. Kh1 {[%emt 0:00:30]} Be7 {[%emt 0:00:30]} 10. f4 {[%emt 0:00:30]} O-O {[%emt 0:00:30]} 11. Rc1 {[%emt 0:00:30]} b5 {[%emt 0:00:30]} 12. a3 {[%emt 0:00:30]} Bb7 {[%emt 0:00:30]} 13. Bf3 {[%emt 0:00:30]} Rfd8 {[%emt 0:00:30]} 14. Qe1 {[%emt 0:00:30]} h6 {[%emt 0:00:30]} 15. Bh4 {[%emt 0:00:30]} Nf8 {[%emt 0:02:30]} 16. Qg3 {[%emt 0:08:30]} Ng6 {[%emt 0:02:30]} 17. Nxe6 {[%emt 0:01:30]} Qd7 {[%emt 0:02:30]} 18. Nxd8 {[%emt 0:03:30]} Rxd8 {[%emt 0:00:00]} 19. Bxf6 {[%emt 0:05:30]} Bxf6 {[%emt 0:03:00]} 20. Bg4 {[%emt 0:00:30]} Qe7 {[%emt 0:00:30]} 21. Bf5 {[%emt 0:02:30]} Nh4 {[%emt 0:01:30]} 22. Bg4 {[%emt 0:06:30]} Bxc3 {[%emt 0:03:30]} 23. Qxc3 {[%emt 0:01:30]} Bxe4 {[%emt 0:01:30]} 24. Bf3 {[%emt 0:00:30]} Nxf3 {[%emt 0:00:30]} 25. gxf3 {[%emt 0:00:30]} Bb7 {[%emt 0:06:30]} 26. Rg1 {[%emt 0:03:30]} g6 {[%emt 0:04:30]} 27. Rce1 {[%emt 0:07:30]} Qd7 {[%emt 0:02:30]} 28. Rg3 {[%emt 0:01:30]} Rc8 {[%emt 0:09:30]} 29. Qd3 {[%emt 0:02:30]} Kh7 {[%emt 0:05:30]} 30. Reg1 {[%emt 0:03:30]} Rg8 {[%emt 0:12:30]} 1-0

[Event "TUR-ch Veterans 2019"]
[Site "Belek"]
[Date "2019.01.21"]
[Round "2.20"]
[White "Ersoz, Celalettin"]
[Black "Sahin, Ali Haydar"]
[Result "1/2-1/2"]
[ECO "D15"]
[WhiteElo "1261"]
[BlackElo "1411"]
[Annotator "NA"]
[PlyCount "125"]
[EventDate "2019.01.20"]
[EventType "swiss"]
[EventCountry "TUR"]
[SourceTitle "playchess.com"]
[Source "ChessBase"]
[SourceQuality "1"]
[TimeControl "5400+30"]

1. d4 {[%emt 0:15:30]} d5 {[%emt 0:20:30]} 2. c4 {[%emt 0:00:30]} c6 {[%emt 0:00:30]} 3. Nc3 {[%emt 0:00:30]} Nf6 {[%emt 0:00:30]} 4. Nf3 {[%emt 0:00:30]} dxc4 {[%emt 0:00:30]} 5. g3 {[%emt 0:00:30]} Bf5 {[%emt 0:00:30]} 6. Bg2 {[%emt 0:00:30]} b5 {[%emt 0:00:30]} 7. O-O {[%emt 0:00:30]} e6 {[%emt 0:00:30]} 8. Bg5 {[%emt 0:00:30]} h6 {[%emt 0:00:30]} 9. Bf4 {[%emt 0:00:30]} Bd6 {[%emt 0:00:30]} 10. Bxd6 {[%emt 0:00:30]} Qxd6 {[%emt 0:00:30]} 11. Ne5 {[%emt 0:00:30]} Ng4 {[%emt 0:00:30]} 12. Nxb5 {[%emt 0:00:30]} cxb5 {[%emt 0:00:30]} 13. Nxg4 {[%emt 0:00:30]} Nc6 {[%emt 0:02:30]} 14. Ne5 {[%emt 0:00:30]} Rc8 {[%emt 0:01:30]} 15. Nxc6 {[%emt 0:00:30]} Rxc6 {[%emt 0:00:30]} 16. Bxc6+ {[%emt 0:00:30]} Qxc6 {[%emt 0:00:30]} 17. f3 {[%emt 0:00:30]} O-O {[%emt 0:00:30]} 18. e4 {[%emt 0:00:00]} Bg6 {[%emt 0:00:30]} 19. Rf2 {[%emt 0:03:00]} f5 {[%emt 0:00:30]} 20. e5 {[%emt 0:01:30]} f4 {[%emt 0:00:30]} 21. g4 {[%emt 0:01:30]} Bd3 {[%emt 0:00:30]} 22. Qd2 {[%emt 0:00:30]} g5 {[%emt 0:01:30]} 23. Qb4 {[%emt 0:01:30]} Rf7 {[%emt 0:07:30]} 24. Qd6 {[%emt 0:05:30]} Qxd6 {[%emt 0:00:30]} 25. exd6 {[%emt 0:00:30]} Rd7 {[%emt 0:00:30]} 26. Re1 {[%emt 0:00:30]} Rxd6 {[%emt 0:00:30]} 27. Re5 {[%emt 0:00:30]} a6 {[%emt 0:00:30]} 28. h4 {[%emt 0:01:30]} Kf7 {[%emt 0:04:30]} 29. hxg5 {[%emt 0:01:30]} hxg5 {[%emt 0:00:00]} 30. Rxg5 {[%emt 0:00:00]} Rxd4 {[%emt 0:00:00]} 31. Rc5 {[%emt 0:02:00]} Rd6 {[%emt 0:01:30]} 32. Rh2 {[%emt 0:00:30]} Bb1 {[%emt 0:06:30]} 33. Rc7+ {[%emt 0:02:30]} Kg6 {[%emt 0:01:30]} 34. Rh8 {[%emt 0:01:30]} Kf6 {[%emt 0:01:30]} 35. Rh6+ {[%emt 0:04:30]} Bg6 {[%emt 0:01:30]} 36. Rc5 {[%emt 0:01:30]} Rd5 {[%emt 0:00:30]} 37. Rc6 {[%emt 0:04:30]} Rd1+ {[%emt 0:00:30]} 38. Kf2 {[%emt 0:00:30]} Rd2+ {[%emt 0:00:30]} 39. Ke1 {[%emt 0:00:30]} Rxb2 {[%emt 0:01:30]} 40. Rxa6 {[%emt 0:03:30]} c3 {[%emt 0:00:00]} 41. Rxg6+ {[%emt 0:05:30]} Kxg6 {[%emt 0:00:00]} 42. Rxe6+ {[%emt 0:01:30]} Kg5 {[%emt 0:00:30]} 43. Kd1 {[%emt 0:01:30]} Rxa2 {[%emt 0:00:30]} 44. Re5+ {[%emt 0:00:30]} Kh4 {[%emt 0:00:30]} 45. Rxb5 {[%emt 0:00:30]} Rf2 {[%emt 0:01:30]} 46. Rh5+ {[%emt 0:08:30]} Kg3 {[%emt 0:00:30]} 47. g5 {[%emt 0:00:00]} Kxf3 {[%emt 0:02:30]} 48. Rh3+ {[%emt 0:02:00]} Kg4 {[%emt 0:00:30]} 49. Rxc3 {[%emt 0:00:30]} Kxg5 {[%emt 0:01:30]} 50. Ke1 {[%emt 0:00:30]} Ra2 {[%emt 0:00:00]} 51. Kf1 {[%emt 0:00:30]} Kg4 {[%emt 0:00:00]} 52. Rb3 {[%emt 0:01:30]} f3 {[%emt 0:00:30]} 53. Rb8 {[%emt 0:00:30]} Ra5 {[%emt 0:03:30]} 54. Rg8+ {[%emt 0:01:30]} Rg5 {[%emt 0:00:30]} 55. Rxg5+ {[%emt 0:01:30]} Kxg5 {[%emt 0:00:30]} 56. Kf2 {[%emt 0:01:30]} Kf4 {[%emt 0:00:30]} 57. Kf1 {[%emt 0:00:30]} Kg3 {[%emt 0:00:00]} 58. Kg1 {[%emt 0:00:30]} Kg4 {[%emt 0:02:00]} 59. Kf2 {[%emt 0:00:00]} Kf4 {[%emt 0:00:00]} 60. Kf1 {[%emt 0:00:00]} Kf5 {[%emt 0:01:00]} 61. Kf2 {[%emt 0:00:30]} Ke4 {[%emt 0:00:30]} 62. Kf1 {[%emt 0:01:30]} Ke3 {[%emt 0:01:30]} 63. Ke1 {[%emt 0:00:00]} 1/2-1/2

[Event "TUR-ch Veterans 2019"]
[Site "Belek"]
[Date "2019.01.22"]
[Round "3.1"]
[White "Buker, Muhittin"]
[Black "Uzuner, Tufan Can"]
[Result "1/2-1/2"]
[ECO "D13"]
[WhiteElo "1978"]
[BlackElo "1889"]
[Annotator "NA"]
[PlyCount "79"]
[EventDate "2019.01.20"]
[EventType "swiss"]
[EventCountry "TUR"]
[SourceTitle "playchess.com"]
[Source "ChessBase"]
[SourceQuality "1"]
[TimeControl "5400+30"]

1. d4 {[%emt 0:00:30]} d5 {[%emt 0:00:30]} 2. Nf3 {[%emt 0:00:30]} Nf6 {[%emt 0:00:30]} 3. c4 {[%emt 0:00:30]} c6 {[%emt 0:00:00]} 4. Nc3 {[%emt 0:01:30]} a6 {[%emt 0:00:00]} 5. cxd5 {[%emt 0:01:30]} cxd5 {[%emt 0:00:30]} 6. Bf4 {[%emt 0:00:30]} Nc6 {[%emt 0:03:30]} 7. e3 {[%emt 0:00:30]} Bf5 {[%emt 0:00:30]} 8. Bd3 {[%emt 0:03:30]} Bxd3 {[%emt 0:05:30]} 9. Qxd3 {[%emt 0:00:30]} e6 {[%emt 0:00:00]} 10. O-O {[%emt 0:00:00]} Be7 {[%emt 0:00:00]} 11. Rac1 {[%emt 0:01:00]} Nd7 {[%emt 0:03:30]} 12. Rfd1 {[%emt 0:03:30]} g5 {[%emt 0:00:00]} 13. Bg3 {[%emt 0:02:30]} h5 {[%emt 0:00:00]} 14. Be5 {[%emt 0:07:30]} Rh6 {[%emt 0:21:30]} 15. h3 {[%emt 0:09:30]} g4 {[%emt 0:05:30]} 16. Bf4 {[%emt 0:01:30]} Rg6 {[%emt 0:00:00]} 17. hxg4 {[%emt 0:00:00]} hxg4 {[%emt 0:01:00]} 18. Ne5 {[%emt 0:00:00]} Ndxe5 {[%emt 0:11:30]} 19. dxe5 {[%emt 0:00:00]} Qb8 {[%emt 0:02:30]} 20. e4 {[%emt 0:08:00]} Nxe5 {[%emt 0:27:45]} 21. Qg3 {[%emt 0:00:30]} Bd6 {[%emt 0:00:12]} 22. Kf1 {[%emt 0:00:30]} Nc4 {[%emt 0:03:10]} 23. Bxd6 {[%emt 0:00:30]} Qxd6 {[%emt 0:00:29]} 24. Qxd6 {[%emt 0:00:30]} Nxd6 {[%emt 0:00:33]} 25. exd5 {[%emt 0:00:30]} e5 {[%emt 0:05:14]} 26. Re1 {[%emt 0:00:30]} f6 {[%emt 0:01:42]} 27. Ne4 {[%emt 0:00:30]} Rd8 {[%emt 0:03:40]} 28. Nxd6+ {[%emt 0:04:30]} Rxd6 {[%emt 0:00:01]} 29. Rc8+ {[%emt 0:00:00]} Ke7 {[%emt 0:03:37]} 30. Rb8 {[%emt 0:04:00]} Rd7 {[%emt 0:00:33]} 31. Re3 {[%emt 0:00:30]} Kd6 {[%emt 0:00:43]} 32. Rb3 {[%emt 0:00:30]} Rgg7 {[%emt 0:01:01]} 33. Rb6+ {[%emt 0:00:30]} Kxd5 {[%emt 0:00:11]} 34. Rxf6 {[%emt 0:00:00]} Rc7 {[%emt 0:00:43]} 35. Rd8+ {[%emt 0:02:00]} Ke4 {[%emt 0:00:37]} 36. Rd2 {[%emt 0:00:30]} Rcf7 {[%emt 0:00:34]} 37. Re2+ {[%emt 0:15:30]} Kd5 {[%emt 0:00:12]} 38. Rd2+ {[%emt 0:00:30]} Ke4 {[%emt 0:00:02]} 39. Re2+ {[%emt 0:00:30]} Kd5 {[%emt 0:00:02]} 40. Rd2+ {[%emt 0:00:30]} 1/2-1/2

[Event "TUR-ch Veterans 2019"]
[Site "Belek"]
[Date "2019.01.22"]
[Round "3.2"]
[White "Aysoy, Veysi"]
[Black "Guner, Bulent"]
[Result "1/2-1/2"]
[ECO "C45"]
[WhiteElo "1933"]
[BlackElo "1987"]
[Annotator "NA"]
[PlyCount "64"]
[EventDate "2019.01.20"]
[EventType "swiss"]
[EventCountry "TUR"]
[SourceTitle "playchess.com"]
[Source "ChessBase"]
[SourceQuality "1"]
[TimeControl "5400+30"]

1. e4 {[%emt 0:00:30]} e5 {[%emt 0:00:30]} 2. Nf3 {[%emt 0:00:00]} Nc6 {[%emt 0:00:30]} 3. d4 {[%emt 0:01:00]} exd4 {[%emt 0:00:30]} 4. Nxd4 {[%emt 0:00:30]} Nf6 {[%emt 0:05:30]} 5. Nxc6 {[%emt 0:03:30]} bxc6 {[%emt 0:00:30]} 6. e5 {[%emt 0:00:00]} Qe7 {[%emt 0:00:30]} 7. Qe2 {[%emt 0:00:00]} Nd5 {[%emt 0:00:30]} 8. c4 {[%emt 0:00:00]} Ba6 {[%emt 0:00:30]} 9. b3 {[%emt 0:00:00]} g6 {[%emt 0:00:30]} 10. f4 {[%emt 0:01:30]} Bg7 {[%emt 0:04:30]} 11. Qf2 {[%emt 0:02:30]} Nf6 {[%emt 0:11:30]} 12. Be2 {[%emt 0:04:30]} Ne4 {[%emt 0:04:30]} 13. Qe3 {[%emt 0:06:30]} f5 {[%emt 0:04:30]} 14. O-O {[%emt 0:04:30]} O-O {[%emt 0:10:30]} 15. Ba3 {[%emt 0:02:30]} d6 {[%emt 0:01:30]} 16. Nd2 {[%emt 0:01:30]} Nf6 {[%emt 0:13:30]} 17. Bf3 {[%emt 0:00:00]} Bb7 {[%emt 0:02:30]} 18. Qd3 {[%emt 0:12:00]} Ne8 {[%emt 0:06:30]} 19. Rfe1 {[%emt 0:01:30]} Qf7 {[%emt 0:03:30]} 20. Rad1 {[%emt 0:03:30]} Rb8 {[%emt 0:05:30]} 21. Nb1 {[%emt 0:04:30]} g5 {[%emt 0:06:03]} 22. exd6 {[%emt 0:10:30]} Nxd6 {[%emt 0:07:51]} 23. Bxd6 {[%emt 0:03:30]} cxd6 {[%emt 0:01:27]} 24. Qxd6 {[%emt 0:01:30]} gxf4 {[%emt 0:05:43]} 25. Qxf4 {[%emt 0:07:30]} c5 {[%emt 0:00:15]} 26. Bd5 {[%emt 0:03:30]} Bxd5 {[%emt 0:00:10]} 27. Rxd5 {[%emt 0:00:30]} Bd4+ {[%emt 0:00:17]} 28. Kh1 {[%emt 0:00:30]} Rbe8 {[%emt 0:00:51]} 29. Rf1 {[%emt 0:01:30]} Re2 {[%emt 0:02:16]} 30. Qf3 {[%emt 0:10:12]} Re3 {[%emt 0:00:15]} 31. Qf4 {[%emt 0:02:01]} Re2 {[%emt 0:00:48]} 32. Qf3 {[%emt 0:07:45]} Re3 {[%emt 0:00:09]} 1/2-1/2